bitfinex/quotes_SOLUSD_20220117
["timestamp","ask_amount","ask_price","bid_price","bid_amount"]
[1642405205575,28.50647588,143.82,143.69,10.12]
[1642405207475,28.50647588,143.82,143.69,35.0275]
[1642405208376,3.95916677,143.81,143.69,35.0275]
[1642405208598,11.98145843,143.78,143.69,35.0275]
[1642405209298,12.23145843,143.78,143.69,35.0275]
[1642405209697,18.14145843,143.78,143.69,35.0275]
[1642405211300,12.23145843,143.78,143.69,35.0275]
[1642405211506,12.23145843,143.78,143.69,24.9075]
[1642405211900,1.3419326,143.75,143.69,24.9075]
[1642405216505,7.3419326,143.75,143.69,24.9075]
[1642405218205,8.52634933,143.75,143.69,24.9075]
[1642405219006,8.52634933,143.75,143.69,24.4075]
[1642405220711,8.52634933,143.75,143.69,24.1575]
[1642405222512,8.52634933,143.75,143.69,24.4075]
[1642405225115,8.52634933,143.75,143.66,10.12]
[1642405225312,8.77634933,143.75,143.64,1.98037748]
[1642405225913,8.77634933,143.75,143.63,1.98037748]
[1642405226212,8.77634933,143.75,143.65,38.45864197]
[1642405226412,19.21694933,143.75,143.65,38.45864197]
[1642405227613,21.19612447,143.75,143.66,24.5887]
[1642405228414,69.9,143.74,143.66,24.5887]
[1642405228617,43.6467828,143.73,143.66,24.5887]
[1642405229014,43.8967828,143.73,143.66,24.5887]
[1642405229318,49.9227828,143.73,143.66,24.0887]
[1642405229517,49.9227828,143.73,143.66,24.3387]
[1642405230515,49.9227828,143.73,143.66,24.0887]
[1642405231818,49.9227828,143.73,143.66,24.3387]
[1642405232417,55.9227828,143.73,143.66,24.3387]
[1642405233021,55.6727828,143.73,143.66,24.0887]
[1642405233220,55.6727828,143.73,143.66,24.3387]
[1642405233420,49.6467828,143.73,143.66,24.0887]
[1642405233622,49.6467828,143.73,143.66,24.3387]
[1642405233822,1.3419326,143.67,143.66,24.3387]
[1642405234020,5.77467054,143.67,143.63,48.86379731]
[1642405234223,5.77467054,143.67,143.63,49.11379731]
[1642405234821,5.77467054,143.67,143.63,0.25]
[1642405235021,5.77467054,143.67,143.62,33.1598]
[1642405235623,5.77467054,143.67,143.62,23.0398]
[1642405238325,5.77467054,143.67,143.62,22.7898]
[1642405239631,11.77467054,143.67,143.62,23.0398]
[1642405239826,5.77467054,143.67,143.62,23.0398]
[1642405244557,5.77467054,143.67,143.62,0.25]
[1642405244957,5.77467054,143.67,143.61,60.85928074]
[1642405244958,5.77467054,143.67,143.61,24.2085]
[1642405245957,11.06330865,143.67,143.61,24.2085]
[1642405247258,11.06330865,143.67,143.61,23.9585]
[1642405248660,17.06330865,143.67,143.61,24.2085]
[1642405251167,17.31330865,143.67,143.61,23.9585]
[1642405251368,22.87230865,143.67,143.6,1.0]
[1642405252469,33.31850865,143.67,143.6,1.0]
[1642405253272,3.6277527,143.66,143.6,1.0]
[1642405253468,3.8777527,143.66,143.6,1.0]
[1642405253669,10.4485,143.65,143.6,1.0]
[1642405253868,10.6985,143.65,143.6,1.0]
[1642405257268,16.6985,143.65,143.6,1.0]
[1642405261174,26.8185,143.65,143.6,1.0]
[1642405262173,96.7185,143.65,143.6,1.0]
[1642405263572,107.3628,143.65,143.6,1.0]
[1642405263973,114.62935924,143.65,143.6,1.0]
[1642405266879,103.98505924,143.65,143.6,1.0]
[1642405267676,34.08505924,143.65,143.6,1.0]
[1642405267876,26.8185,143.65,143.6,1.0]
[1642405268078,33.83554189,143.65,143.6,1.0]
[1642405268280,23.71554189,143.65,143.6,44.96069327]
[1642405268508,16.4485,143.65,143.6,44.96069327]
[1642405268707,6.0,143.65,143.6,44.96069327]
[1642405268906,13.76750774,143.67,143.6,44.96069327]
[1642405269307,1.3419326,143.67,143.6,53.72469327]
[1642405269508,1.3419326,143.67,143.6,53.97469327]
[1642405270711,1.3419326,143.67,143.6,45.21069327]
[1642405270912,1.3419326,143.67,143.6,68.23689327]
[1642405272614,7.3419326,143.67,143.6,68.23689327]
[1642405275719,7.3419326,143.67,143.6,67.98689327]
[1642405275921,7.5919326,143.67,143.6,67.98689327]
[1642405277021,7.5919326,143.67,143.6,68.23689327]
[1642405277819,7.3419326,143.67,143.6,68.23689327]
[1642405278420,7.5919326,143.67,143.6,68.23689327]
[1642405278921,7.3419326,143.67,143.6,68.23689327]
[1642405279124,7.5919326,143.67,143.6,24.2762]
[1642405279322,7.5919326,143.67,143.6,24.0262]
[1642405280022,1.4121241,143.66,143.6,24.0262]
[1642405280423,10.448,143.65,143.6,1.0]
[1642405281224,10.698,143.65,143.6,1.0]
[1642405281422,10.448,143.65,143.6,1.0]
[1642405281625,10.698,143.65,143.6,1.0]
[1642405283930,16.698,143.65,143.6,1.0]
[1642405292741,86.598,143.65,143.6,1.0]
[1642405292939,11.65140658,143.62,143.6,1.0]
[1642405293139,4.43273794,143.61,143.6,1.0]
[1642405293340,29.0,143.6,143.57,24.545]
[1642405295140,4.43273794,143.59,143.57,24.545]
[1642405295344,4.43273794,143.59,143.54,22.9342]
[1642405295544,4.43273794,143.59,143.54,23.1842]
[1642405297141,10.43273794,143.59,143.54,23.1842]
[1642405298250,10.43273794,143.59,143.54,0.25]
[1642405298445,20.88473794,143.59,143.52,22.5076]
[1642405298846,21.13473794,143.59,143.52,22.5076]
[1642405299048,21.13473794,143.59,143.5,1.98037748]
[1642405299247,21.13473794,143.59,143.48,24.8671]
[1642405301844,21.13473794,143.59,143.48,25.1171]
[1642405302947,1.3419326,143.54,143.48,25.1171]
[1642405305049,1.3419326,143.54,143.48,24.8671]
[1642405306452,1.3419326,143.54,143.48,25.1171]
[1642405307858,7.3419326,143.54,143.48,25.1171]
[1642405308056,1.3419326,143.54,143.48,25.1171]
[1642405308254,7.3419326,143.54,143.48,25.1171]
[1642405308453,1.3419326,143.54,143.48,25.1171]
[1642405308655,7.3419326,143.54,143.48,25.1171]
[1642405313287,1.3419326,143.54,143.48,25.1171]
[1642405314285,1.3419326,143.54,143.48,24.8671]
[1642405315385,1.3419326,143.54,143.48,25.1171]
[1642405315988,7.3419326,143.54,143.48,24.8671]
[1642405316186,1.5919326,143.54,143.48,24.8671]
[1642405316589,7.5919326,143.54,143.48,24.8671]
[1642405316787,1.3419326,143.54,143.48,24.8671]
[1642405316987,7.3419326,143.54,143.48,24.8671]
[1642405317189,1.3419326,143.54,143.48,24.8671]
[1642405317407,1.3419326,143.54,143.48,25.1171]
[1642405317593,7.3419326,143.54,143.48,25.1171]
[1642405317792,1.3419326,143.54,143.48,25.1171]
[1642405317993,7.3419326,143.54,143.48,25.1171]
[1642405318196,1.3419326,143.54,143.48,25.1171]
[1642405318398,7.3419326,143.54,143.48,25.1171]
[1642405318595,1.3419326,143.54,143.48,25.1171]
[1642405318794,7.3419326,143.54,143.48,25.1171]
[1642405318996,1.3419326,143.54,143.48,25.1171]
[1642405319997,1.5919326,143.54,143.48,25.1171]
[1642405320399,1.5919326,143.54,143.48,24.8671]
[1642405320598,1.5919326,143.54,143.48,25.1171]
[1642405321001,1.3419326,143.54,143.48,25.1171]
[1642405322201,11.7977326,143.54,143.48,25.1171]
[1642405322399,12.0477326,143.54,143.48,24.8671]
[1642405323200,12.0477326,143.54,143.44,1.98037748]
[1642405323399,12.0477326,143.54,143.44,2.23037748]
[1642405323602,12.0477326,143.54,143.45,1.98037748]
[1642405323903,18.0477326,143.54,143.45,2.23037748]
[1642405325602,18.0477326,143.54,143.45,0.25]
[1642405325801,18.0477326,143.54,143.44,25.10717748]
[1642405326404,12.0477326,143.54,143.44,25.10717748]
[1642405326803,12.0477326,143.54,143.44,24.31246056]
[1642405327204,11.7977326,143.54,143.44,24.31246056]
[1642405327905,11.7977326,143.54,143.44,23.1268]
[1642405328304,11.7977326,143.54,143.45,1.98037748]
[1642405328707,11.7977326,143.54,143.45,2.23037748]
[1642405328904,11.7977326,143.54,143.45,0.25]
[1642405329807,11.7977326,143.54,143.44,25.10717748]
[1642405330207,17.7977326,143.54,143.44,25.10717748]
[1642405330809,3.62962341,143.53,143.44,25.10717748]
[1642405331008,3.62962341,143.53,143.45,1.98037748]
[1642405331409,3.62962341,143.53,143.45,2.23037748]
[1642405331808,17.7977326,143.54,143.45,2.23037748]
[1642405332010,12.0477326,143.54,143.45,2.23037748]
[1642405332409,12.0477326,143.54,143.45,1.98037748]
[1642405333110,12.0477326,143.54,143.44,24.85717748]
[1642405333714,12.0477326,143.54,143.44,26.29283804]
[1642405333913,18.0477326,143.54,143.44,24.85717748]
[1642405335321,1.3419326,143.47,143.44,24.85717748]
[1642405335519,1.3419326,143.47,143.45,1.631662]
[1642405336447,1.3419326,143.47,143.45,1.881662]
[1642405338746,3.03219997,143.46,143.45,1.881662]
[1642405338947,4.43273794,143.46,143.45,0.25]
[1642405339146,4.43273794,143.46,143.44,23.1268]
[1642405339347,4.43273794,143.46,143.44,24.758462]
[1642405339547,1.3419326,143.47,143.44,1.881662]
[1642405342861,3.03219997,143.46,143.44,1.881662]
[1642405343154,1.40053797,143.45,143.44,0.25]
[1642405343354,1.40053797,143.45,143.43,22.8532]
[1642405343556,3.03219997,143.46,143.44,1.631662]
[1642405343853,1.3419326,143.47,143.44,1.881662]
[1642405346955,3.26e-05,143.47,143.44,1.881662]
[1642405348255,3.26e-05,143.47,143.45,24.8563]
[1642405348456,3.26e-05,143.47,143.45,25.1063]
[1642405349057,3.26e-05,143.47,143.46,89.631662]
[1642405349457,3.26e-05,143.47,143.46,89.881662]
[1642405349855,3.26e-05,143.47,143.46,91.06732256]
[1642405350256,3.26e-05,143.47,143.46,129.06732256]
[1642405350457,3.26e-05,143.47,143.46,91.06732256]
[1642405350759,3.26e-05,143.47,143.46,89.881662]
[1642405353573,12.68287514,143.57,143.46,89.881662]
[1642405353861,12.68287514,143.57,143.48,43.5528439]
[1642405354061,12.68287514,143.57,143.49,23.8557]
[1642405354262,1.97917514,143.57,143.49,24.1057]
[1642405354662,574.05409389,143.58,143.49,24.1057]
[1642405354861,3.6299715,143.56,143.49,24.1057]
[1642405355363,584.50709389,143.58,143.49,24.1057]
[1642405355562,3.6299354,143.55,143.49,24.1057]
[1642405355962,6.0,143.55,143.49,24.1057]
[1642405356161,7.84107097,143.56,143.49,23.8557]
[1642405356361,0.25,143.56,143.49,23.8557]
[1642405356761,23.1532,143.58,143.49,23.8557]
[1642405356762,25.13237514,143.58,143.49,23.8557]
[1642405356962,25.38237514,143.58,143.49,23.8557]
[1642405357362,55.29090186,143.58,143.49,24.1057]
[1642405357563,10.4536,143.57,143.49,24.1057]
[1642405357966,10.7036,143.57,143.49,24.1057]
[1642405358965,5.8943,143.49,143.48,43.5528439]
[1642405359168,5.8943,143.49,143.48,45.1845059]
[1642405360367,5.8943,143.49,143.48,45.4345059]
[1642405373423,23.396,143.56,143.49,73.0]
[1642405373617,23.396,143.56,143.5,24.8416]
[1642405373915,29.396,143.56,143.5,25.0916]
[1642405374417,29.396,143.56,143.51,36.29191441]
[1642405374817,6.0,143.56,143.51,36.54191441]
[1642405375218,1.97917514,143.57,143.51,36.54191441]
[1642405375722,6.0,143.57,143.51,36.54191441]
[1642405375922,7.97917514,143.58,143.51,36.54191441]
[1642405376120,2.22917514,143.58,143.51,36.54191441]
[1642405376620,8.22917514,143.58,143.51,36.54191441]
[1642405377423,10.82840376,143.58,143.51,36.54191441]
[1642405377723,1.97917514,143.57,143.51,36.54191441]
[1642405378825,1.97917514,143.57,143.51,0.25]
[1642405379226,1.97917514,143.57,143.5,25.0916]
[1642405379830,1.97917514,143.57,143.5,67.49526141]
[1642405380024,7.97917514,143.57,143.5,67.49526141]
[1642405380225,1.97917514,143.57,143.5,67.49526141]
[1642405380424,7.97917514,143.57,143.5,67.49526141]
[1642405382555,7.97917514,143.57,143.5,77.61526141]
[1642405382757,7.97917514,143.57,143.5,147.51526141]
[1642405383762,6.0,143.57,143.5,147.51526141]
[1642405383964,1.97917514,143.58,143.5,147.51526141]
[1642405385664,26.32717514,143.59,143.5,157.96516141]
[1642405386663,26.32717514,143.59,143.5,157.71516141]
[1642405387263,1.97917514,143.58,143.5,157.71516141]
[1642405387463,1.97917514,143.58,143.5,87.81516141]
[1642405387662,7.97917514,143.58,143.5,77.36526141]
[1642405387863,26.32717514,143.59,143.5,77.61526141]
[1642405388665,1.97917514,143.58,143.5,77.61526141]
[1642405389562,26.32717514,143.59,143.5,77.61526141]
[1642405391365,32.32717514,143.59,143.5,77.61526141]
[1642405398273,10.05933274,143.58,143.5,77.61526141]
[1642405399980,26.32717514,143.59,143.5,77.61526141]
[1642405402075,32.32717514,143.59,143.5,77.61526141]
[1642405402877,1.97917514,143.58,143.5,77.61526141]
[1642405404278,2.63538088,143.57,143.5,77.61526141]
[1642405405978,6.0,143.57,143.5,77.61526141]
[1642405406178,1.97917514,143.58,143.5,77.61526141]
[1642405406581,7.97917514,143.58,143.5,77.61526141]
[1642405406883,7.97917514,143.58,143.5,35.2116]
[1642405407780,41.3496663,143.57,143.5,35.2116]
[1642405407982,41.3496663,143.57,143.5,24.8416]
[1642405409484,41.3496663,143.57,143.5,25.0916]
[1642405409681,1.97917514,143.56,143.5,25.0916]
[1642405411988,7.97917514,143.56,143.5,25.0916]
[1642405412186,43.32884144,143.57,143.5,25.0916]
[1642405412386,49.32884144,143.57,143.5,25.0916]
[1642405413288,3.63132923,143.56,143.5,25.0916]
[1642405417589,9.63132923,143.56,143.5,25.0916]
[1642405417790,3.63132923,143.56,143.5,25.0916]
[1642405417990,9.63132923,143.56,143.5,25.0916]
[1642405425033,6.0,143.56,143.5,25.0916]
[1642405425425,57.40788224,143.57,143.5,25.0916]
[1642405427226,16.05821594,143.57,143.5,25.0916]
[1642405428027,47.87646668,143.57,143.5,25.0916]
[1642405429831,11.60561594,143.57,143.5,25.0916]
[1642405430229,11.60561594,143.57,143.5,24.8416]
[1642405431428,11.60561594,143.57,143.5,25.0916]
[1642405432533,1.97917514,143.56,143.5,25.0916]
[1642405433933,6.71048614,143.56,143.5,25.0916]
[1642405436035,12.71048614,143.56,143.5,25.0916]
[1642405437438,7.97917514,143.56,143.5,25.0916]
[1642405442243,1.97917514,143.55,143.5,25.0916]
[1642405443946,7.97917514,143.55,143.5,25.0916]
[1642405450451,6.0,143.55,143.5,25.0916]
[1642405450852,1.97917514,143.56,143.5,25.0916]
[1642405451853,7.97917514,143.56,143.5,25.0916]
[1642405454155,1.45358844,143.55,143.5,25.0916]
[1642405454358,7.97917514,143.56,143.5,25.0916]
[1642405455457,7.97917514,143.56,143.51,47.07176001]
[1642405455858,7.97917514,143.56,143.51,47.32176001]
[1642405456084,7.97917514,143.56,143.51,53.97576001]
[1642405456782,6.0,143.56,143.51,53.97576001]
[1642405456983,25.54347514,143.57,143.51,53.97576001]
[1642405457582,25.54347514,143.57,143.51,47.32176001]
[1642405459885,31.54347514,143.57,143.51,47.32176001]
[1642405464589,7.97917514,143.57,143.51,47.32176001]
[1642405468093,6.0,143.57,143.51,47.32176001]
[1642405468491,1.97917514,143.58,143.51,47.32176001]
[1642405468892,1.97917514,143.58,143.52,24.7623]
[1642405469396,1.97917514,143.58,143.52,25.0123]
[1642405472095,7.97917514,143.58,143.52,25.0123]
[1642405473297,11.60700888,143.58,143.52,25.0123]
[1642405476299,1.97917514,143.57,143.52,25.0123]
[1642405481001,7.97917514,143.57,143.52,25.0123]
[1642405481200,1.97917514,143.57,143.52,25.0123]
[1642405481403,7.97917514,143.57,143.52,25.0123]
[1642405487807,1.97917514,143.56,143.52,25.0123]
[1642405491912,7.97917514,143.56,143.52,25.0123]
[1642405492111,1.97917514,143.56,143.52,25.0123]
[1642405492312,7.97917514,143.56,143.52,25.0123]
[1642405492611,1.97917514,143.56,143.52,25.0123]
[1642405492814,7.97917514,143.56,143.52,25.0123]
[1642405501119,1.97917514,143.56,143.52,25.0123]
[1642405501920,1.97917514,143.56,143.53,48.87652653]
[1642405502122,3.44972969,143.59,143.54,1.631662]
[1642405502522,3.44972969,143.59,143.54,1.881662]
[1642405504726,9.44972969,143.59,143.54,1.881662]
[1642405504927,9.44972969,143.59,143.54,0.25]
[1642405505327,9.44972969,143.59,143.52,25.0123]
[1642405505930,9.44972969,143.59,143.52,24.7623]
[1642405506530,19.90212969,143.59,143.52,24.7623]
[1642405506728,1.97917514,143.58,143.52,24.7623]
[1642405506928,43.46176378,143.58,143.52,24.7623]
[1642405507329,49.58076378,143.58,143.52,25.0123]
[1642405508231,8.09817514,143.58,143.52,25.0123]
[1642405508533,18.43217514,143.58,143.52,25.0123]
[1642405508733,1.97917514,143.57,143.52,25.0123]
[1642405509234,1.97917514,143.57,143.52,67.92526319]
[1642405510032,18.43217514,143.58,143.52,67.92526319]
[1642405510236,7.97917514,143.58,143.52,67.92526319]
[1642405510735,1.97917514,143.58,143.52,67.92526319]
[1642405510934,1.97917514,143.58,143.52,77.08540472]
[1642405511146,1.97917514,143.58,143.53,10.12]
[1642405511337,1.97917514,143.58,143.54,10.4473]
[1642405511538,1.97917514,143.58,143.55,39.82156987]
[1642405511737,1.97917514,143.58,143.56,1.631662]
[1642405511937,1.97917514,143.58,143.56,1.881662]
[1642405512761,1.97917514,143.62,143.56,1.881662]
[1642405512963,1.97917514,143.62,143.56,24.899862]
[1642405515072,5.60115377,143.63,143.56,24.899862]
[1642405516966,11.60115377,143.63,143.56,24.899862]
[1642405517867,7.97917514,143.63,143.56,24.899862]
[1642405518266,7.97917514,143.63,143.56,30.803862]
[1642405518667,1.97917514,143.63,143.57,69.9]
[1642405518870,1.97917514,143.63,143.58,93.155]
[1642405519368,1.97917514,143.63,143.58,93.405]
[1642405519567,1.97917514,143.63,143.59,40.13985479]
[1642405519766,449.49726719,143.66,143.59,45.60185479]
[1642405519967,449.49726719,143.66,143.59,45.85185479]
[1642405520171,1.97917514,143.66,143.59,45.85185479]
[1642405520567,1.97917514,143.66,143.6,24.0992]
[1642405520969,1.97917514,143.66,143.6,24.3492]
[1642405521169,1.97917514,143.67,143.6,24.3492]
[1642405524172,33.5578,143.7,143.6,24.3492]
[1642405524173,1.97917514,143.68,143.6,24.3492]
[1642405524973,7.97917514,143.68,143.6,24.3492]
[1642405527874,8.22917514,143.68,143.6,24.3492]
[1642405529379,7.97917514,143.68,143.6,24.3492]
[1642405529983,1.97917514,143.68,143.61,69.9]
[1642405530183,3.89185803,143.71,143.64,78.0]
[1642405530384,3.89185803,143.71,143.64,39.2079]
[1642405530986,3.89185803,143.71,143.65,35.66562661]
[1642405531184,500.76058286,143.75,143.65,46.10462661]
[1642405531385,500.76058286,143.75,143.66,23.709]
[1642405531587,500.76058286,143.75,143.66,93.609]
[1642405531786,500.76058286,143.75,143.66,93.859]
[1642405531986,506.76058286,143.75,143.66,23.959]
[1642405532186,6.0,143.75,143.66,23.959]
[1642405532387,14.33155803,143.77,143.66,23.959]
[1642405532586,16.4397,143.77,143.66,23.959]
[1642405533990,16.6897,143.77,143.66,23.959]
[1642405534192,16.4397,143.77,143.66,23.959]
[1642405534392,16.6897,143.77,143.66,23.959]
[1642405534592,55.07604343,143.77,143.66,23.959]
[1642405534889,16.6897,143.77,143.66,23.959]
[1642405537593,16.6897,143.77,143.66,93.859]
[1642405540319,16.6897,143.77,143.66,101.874]
[1642405540519,16.6897,143.77,143.66,31.974]
[1642405543022,16.6897,143.77,143.66,101.874]
[1642405545322,16.6897,143.77,143.66,31.974]
[1642405545523,16.6897,143.77,143.66,23.959]
[1642405545725,16.6897,143.77,143.66,34.079]
[1642405546330,40.1052,143.77,143.66,34.079]
[1642405546530,40.1052,143.77,143.66,42.011]
[1642405546731,40.1052,143.77,143.66,111.911]
[1642405546936,40.1052,143.77,143.66,42.011]
[1642405547738,40.1052,143.77,143.67,69.9]
[1642405547936,29.6655,143.77,143.67,70.15]
[1642405548136,29.6655,143.77,143.68,23.5116]
[1642405548337,6.0,143.77,143.69,114.35318495]
[1642405548536,6.0,143.77,143.69,122.54418495]
[1642405548736,27.94775803,143.79,143.69,122.79418495]
[1642405548937,27.94775803,143.79,143.7,24.6373]
[1642405549336,27.94775803,143.79,143.7,94.7873]
[1642405549543,27.94775803,143.79,143.7,24.8873]
[1642405549739,24.0559,143.79,143.7,24.8873]
[1642405551939,24.0559,143.79,143.7,94.7873]
[1642405552338,30.0559,143.79,143.7,94.7873]
[1642405554044,30.0559,143.79,143.7,100.7873]
[1642405555342,6.0,143.79,143.7,100.7873]
[1642405555544,6.0,143.79,143.7,111.2228]
[1642405555745,1.60927676,143.8,143.7,111.2228]
[1642405555944,1.85927676,143.8,143.7,111.2228]
[1642405556155,7.85927676,143.8,143.7,111.2228]
[1642405557877,7.85927676,143.8,143.7,112.41577988]
[1642405560684,11.75113479,143.8,143.7,112.41577988]
[1642405562083,11.75113479,143.8,143.7,122.53577988]
[1642405564384,7.85927676,143.8,143.7,122.53577988]
[1642405566088,11.75113479,143.8,143.7,122.53577988]
[1642405566486,25.60643219,143.8,143.7,46.63577988]
[1642405566687,25.60643219,143.8,143.7,45.4428]
[1642405566889,24.8959,143.79,143.7,45.4428]
[1642405567786,24.8959,143.79,143.7,115.3428]
[1642405570888,30.8959,143.79,143.7,115.3428]
[1642405571288,30.8959,143.79,143.7,35.0073]
[1642405572588,34.78775803,143.79,143.7,35.0073]
[1642405573888,34.78775803,143.79,143.7,104.9073]
[1642405578097,7.86501127,143.78,143.7,104.9073]
[1642405579198,7.86501127,143.78,143.7,106.10027988]
[1642405580297,13.86501127,143.78,143.7,106.10027988]
[1642405580698,13.86501127,143.78,143.7,36.20027988]
[1642405580899,22.01601713,143.78,143.7,36.20027988]
[1642405581100,22.01601713,143.78,143.7,24.8873]
[1642405581404,18.29286389,143.78,143.7,24.6373]
[1642405582000,34.14556389,143.78,143.67,33.1427]
[1642405582200,22.5398,143.77,143.65,10.12]
[1642405582403,30.6536436,143.77,143.66,23.1067]
[1642405582802,30.6536436,143.77,143.66,23.3567]
[1642405583401,10.4411,143.75,143.66,23.3567]
[1642405583621,42.10794822,143.74,143.66,23.3567]
[1642405584025,42.35794822,143.74,143.66,23.3567]
[1642405584825,38.46609019,143.74,143.66,23.3567]
[1642405585326,0.25,143.74,143.67,35.42453821]
[1642405585732,14.58295803,143.75,143.67,35.42453821]
[1642405586327,48.27700955,143.75,143.67,35.42453821]
[1642405586533,54.27700955,143.75,143.67,35.42453821]
[1642405587426,54.27700955,143.75,143.66,23.3567]
[1642405587627,50.38515152,143.75,143.66,23.3567]
[1642405593732,16.6911,143.75,143.66,23.3567]
[1642405594132,6.0,143.75,143.66,23.3567]
[1642405594334,3.89185803,143.76,143.66,31.98067988]
[1642405594533,3.89185803,143.76,143.66,42.10067988]
[1642405594934,22.5398,143.77,143.66,42.10067988]
[1642405595333,22.5398,143.77,143.66,52.53887988]
[1642405595933,28.5398,143.77,143.66,52.53887988]
[1642405598938,28.5398,143.77,143.67,69.9]
[1642405599134,28.5398,143.77,143.69,39.1187915]
[1642405599338,28.5398,143.77,143.7,23.6895]
[1642405599835,28.5398,143.77,143.7,23.9395]
[1642405607453,28.5398,143.77,143.7,23.6895]
[1642405607649,28.7898,143.77,143.69,39.1187915]
[1642405608049,28.7898,143.77,143.66,33.8531]
[1642405608249,28.7898,143.77,143.67,22.89]
[1642405608849,28.7898,143.77,143.67,23.14]
[1642405609050,28.7898,143.77,143.68,35.04044879]
[1642405609450,39.2291,143.77,143.68,35.29044879]
[1642405610052,39.2291,143.77,143.69,22.5757]
[1642405610451,38.9791,143.77,143.69,22.8257]
[1642405610652,38.9791,143.77,143.69,22.5757]
[1642405610850,39.2291,143.77,143.69,22.5757]
[1642405612355,43.12095803,143.77,143.69,22.5757]
[1642405612856,43.12095803,143.77,143.69,22.8257]
[1642405613555,39.2291,143.77,143.69,22.8257]
[1642405613754,39.2291,143.77,143.69,22.5757]
[1642405615460,43.12095803,143.77,143.69,22.5757]
[1642405616358,43.12095803,143.77,143.69,22.8257]
[1642405617861,43.12095803,143.77,143.69,22.5757]
[1642405619761,43.12095803,143.77,143.69,22.8257]
[1642405620860,42.87095803,143.77,143.69,22.8257]
[1642405621063,32.43165803,143.77,143.69,69.65641202]
[1642405621563,28.5398,143.77,143.69,22.8257]
[1642405624380,39.2289,143.77,143.69,22.8257]
[1642405625199,39.2289,143.77,143.69,22.5757]
[1642405626197,43.12075803,143.77,143.69,22.5757]
[1642405627702,43.12075803,143.77,143.69,68.32543311]
[1642405627899,42.87075803,143.77,143.69,68.32543311]
[1642405628599,42.87075803,143.77,143.69,138.22543311]
[1642405629206,38.9789,143.77,143.69,138.22543311]
[1642405629903,28.5398,143.77,143.69,138.22543311]
[1642405631002,28.5398,143.77,143.69,139.41841299]
[1642405633211,28.5398,143.77,143.69,138.22543311]
[1642405634413,28.5398,143.77,143.69,139.41841299]
[1642405636608,28.5398,143.77,143.69,149.85461299]
[1642405636808,6.0,143.77,143.69,149.85461299]
[1642405637009,3.89185803,143.79,143.69,156.49461299]
[1642405637211,3.89185803,143.79,143.7,10.12]
[1642405637410,3.89185803,143.79,143.7,10.37]
[1642405637610,3.89185803,143.79,143.71,1.19297988]
[1642405637810,3.89185803,143.79,143.73,69.9]
[1642405638010,411.67802746,143.82,143.73,93.0584]
[1642405638215,411.67802746,143.82,143.73,110.72347988]
[1642405638812,3.89185803,143.82,143.73,110.72347988]
[1642405639213,20.28420076,143.85,143.73,110.72347988]
[1642405639413,23.4046,143.84,143.73,110.72347988]
[1642405640619,29.4046,143.84,143.73,110.72347988]
[1642405641319,29.4046,143.84,143.73,104.93447988]
[1642405643121,5.58591727,143.83,143.73,104.93447988]
[1642405646844,5.58591727,143.83,143.73,103.4915]
[1642405647044,5.58591727,143.83,143.73,33.5915]
[1642405647045,5.83591727,143.83,143.73,33.5915]
[1642405648347,5.58591727,143.83,143.73,33.8415]
[1642405648845,5.83591727,143.83,143.73,33.8415]
[1642405650246,5.58591727,143.83,143.73,33.8415]
[1642405650444,5.83591727,143.83,143.73,33.8415]
[1642405650951,1.97800299,143.81,143.73,33.8415]
[1642405652446,1.97800299,143.81,143.73,23.4084]
[1642405653949,1.97800299,143.8,143.73,23.4084]
[1642405655854,42.75918177,143.8,143.73,23.4084]
[1642405657055,1.97800299,143.79,143.73,23.4084]
[1642405657657,1.97800299,143.79,143.73,63.13764111]
[1642405658661,1.97800299,143.8,143.73,63.13764111]
[1642405663361,1.97800299,143.79,143.73,63.13764111]
[1642405664362,1.97800299,143.79,143.74,69.9]
[1642405664561,1.97800299,143.79,143.74,71.09471518]
[1642405664861,1.97800299,143.79,143.74,71.34471518]
[1642405665263,1.97800299,143.79,143.74,70.15]
[1642405665564,1.97800299,143.8,143.74,70.15]
[1642405665765,1.97800299,143.8,143.75,24.7384]
[1642405665966,1.97800299,143.8,143.75,24.9884]
[1642405666168,7.97800299,143.8,143.75,24.9884]
[1642405668970,1.97800299,143.79,143.75,24.9884]